Workbook

Sheet Отчет за печалбите и загубите
B1: Печалба и загуба Отчет
D3: ПРЕДИШЕН ПЕРИОД | E3: БЮДЖЕТ | F3: ТЕКУЩ ПЕРИОД | H3: ТЕКУЩ ПЕРИОД КАТО % ОТ ПРОДАЖБИТЕ | I3: % ПРОМЯНА СПРЯМО ПРЕДИШЕН ПЕРИОД | J3: % ПРОМЯНА СПРЯМО БЮДЖЕТА
B4: Приходи от продажбите
B5: Продукт/услуга 1 | D5: 40 | E5: 50 | F5: 45 | H5: =IFERROR(Приходиотпродажби[[#This Row],[Текущ период]]/SUBTOTAL(109,Приходиотпродажби[Текущ период]),0) -> 100.0% | I5: =IFERROR(Приходиотпродажби[[#This Row],[Текущ период]]/Приходиотпродажби[[#This Row],[Предишен период]]-1,0) -> 12.5% | J5: =IFERROR(Приходиотпродажби[[#This Row],[Текущ период]]/Приходиотпродажби[[#This Row],[Бюджет]]-1,0) -> -10.0%
B6: Продукт/услуга 2 | H6: =IFERROR(Приходиотпродажби[[#This Row],[Текущ период]]/SUBTOTAL(109,Приходиотпродажби[Текущ период]),0) -> 0 | I6: =IFERROR(Приходиотпродажби[[#This Row],[Текущ период]]/Приходиотпродажби[[#This Row],[Предишен период]]-1,0) -> 0 | J6: =IFERROR(Приходиотпродажби[[#This Row],[Текущ период]]/Приходиотпродажби[[#This Row],[Бюджет]]-1,0) -> 0
B7: Продукт/услуга 3 | H7: =IFERROR(Приходиотпродажби[[#This Row],[Текущ период]]/SUBTOTAL(109,Приходиотпродажби[Текущ период]),0) -> 0 | I7: =IFERROR(Приходиотпродажби[[#This Row],[Текущ период]]/Приходиотпродажби[[#This Row],[Предишен период]]-1,0) -> 0 | J7: =IFERROR(Приходиотпродажби[[#This Row],[Текущ период]]/Приходиотпродажби[[#This Row],[Бюджет]]-1,0) -> 0
B8: Продукт/услуга 4 | H8: =IFERROR(Приходиотпродажби[[#This Row],[Текущ период]]/SUBTOTAL(109,Приходиотпродажби[Текущ период]),0) -> 0 | I8: =IFERROR(Приходиотпродажби[[#This Row],[Текущ период]]/Приходиотпродажби[[#This Row],[Предишен период]]-1,0) -> 0 | J8: =IFERROR(Приходиотпродажби[[#This Row],[Текущ период]]/Приходиотпродажби[[#This Row],[Бюджет]]-1,0) -> 0
B9: Общо | D9: =SUBTOTAL(109,Приходиотпродажби[Предишен период]) -> 40 | E9: =SUBTOTAL(109,Приходиотпродажби[Бюджет]) -> 50 | F9: =SUBTOTAL(109,Приходиотпродажби[Текущ период]) -> 45 | H9: =IFERROR(Приходиотпродажби[[#Totals],[Текущ период]]/Приходиотпродажби[[#Totals],[Текущ период]],0) -> 100.0% | I9: =IFERROR(Приходиотпродажби[[#Totals],[Текущ период]]/Приходиотпродажби[[#Totals],[Предишен период]]-1,0) -> 12.5% | J9: =IFERROR(Приходиотпродажби[[#Totals],[Текущ период]]/Приходиотпродажби[[#Totals],[Бюджет]]-1,0) -> -10.0%
B11: Себестойност на продажбите
B12: Продукт/услуга 1 | E12: 2 | F12: 3 | H12: =IFERROR(Себестойностнапродажбите[[#This Row],[Текущ период]]/SUBTOTAL(109,Приходиотпродажби[Текущ период]),0) -> 6.7% | I12: =IFERROR(Себестойностнапродажбите[[#This Row],[Текущ период]]/Себестойностнапродажбите[[#This Row],[Предишен период]]-1,0) -> 0 | J12: =IFERROR(Себестойностнапродажбите[[#This Row],[Текущ период]]/Себестойностнапродажбите[[#This Row],[Бюджет]]-1,0) -> 50.0%
B13: Продукт/услуга 2 | E13: 5 | F13: 3 | H13: =IFERROR(Себестойностнапродажбите[[#This Row],[Текущ период]]/SUBTOTAL(109,Приходиотпродажби[Текущ период]),0) -> 6.7% | I13: =IFERROR(Себестойностнапродажбите[[#This Row],[Текущ период]]/Себестойностнапродажбите[[#This Row],[Предишен период]]-1,0) -> 0 | J13: =IFERROR(Себестойностнапродажбите[[#This Row],[Текущ период]]/Себестойностнапродажбите[[#This Row],[Бюджет]]-1,0) -> -40.0%
B14: Продукт/услуга 3 | F14: 1 | H14: =IFERROR(Себестойностнапродажбите[[#This Row],[Текущ период]]/SUBTOTAL(109,Приходиотпродажби[Текущ период]),0) -> 2.2% | I14: =IFERROR(Себестойностнапродажбите[[#This Row],[Текущ период]]/Себестойностнапродажбите[[#This Row],[Предишен период]]-1,0) -> 0 | J14: =IFERROR(Себестойностнапродажбите[[#This Row],[Текущ период]]/Себестойностнапродажбите[[#This Row],[Бюджет]]-1,0) -> 0
B15: Продукт/услуга 4 | H15: =IFERROR(Себестойностнапродажбите[[#This Row],[Текущ период]]/SUBTOTAL(109,Приходиотпродажби[Текущ период]),0) -> 0 | I15: =IFERROR(Себестойностнапродажбите[[#This Row],[Текущ период]]/Себестойностнапродажбите[[#This Row],[Предишен период]]-1,0) -> 0 | J15: =IFERROR(Себестойностнапродажбите[[#This Row],[Текущ период]]/Себестойностнапродажбите[[#This Row],[Бюджет]]-1,0) -> 0
B16: Общо | D16: =SUBTOTAL(109,Себестойностнапродажбите[Предишен период]) -> 0 | E16: =SUBTOTAL(109,Себестойностнапродажбите[Бюджет]) -> 7 | F16: =SUBTOTAL(109,Себестойностнапродажбите[Текущ период]) -> 7 | H16: =IFERROR(Себестойностнапродажбите[[#Totals],[Текущ период]]/SUBTOTAL(109,Приходиотпродажби[Текущ период]),0) -> 15.6% | I16: =IFERROR(Себестойностнапродажбите[[#Totals],[Текущ период]]/Себестойностнапродажбите[[#Totals],[Предишен период]]-1,0) -> 0 | J16: =IFERROR(Себестойностнапродажбите[[#Totals],[Текущ период]]/Себестойностнапродажбите[[#Totals],[Бюджет]]-1,0) -> 0
B18: Брутна печалба | D18: =SUM(Приходиотпродажби[Предишен период])-SUM(Себестойностнапродажбите[Предишен период]) -> 40 | E18: =SUM(Приходиотпродажби[Бюджет])-SUM(Себестойностнапродажбите[Бюджет]) -> 43 | F18: =SUM(Приходиотпродажби[Текущ период])-SUM(Себестойностнапродажбите[Текущ период]) -> 38 | H18: =IFERROR(F18/SUBTOTAL(109,Приходиотпродажби[Текущ период]),0) -> 84.4% | I18: =IFERROR(F18/D18-1,0) -> -5.0% | J18: =IFERROR(F18/E18-1,0) -> -11.6%
B20: Текущ разход: Продажби и маркетинг
B21: Реклама | E21: 22 | F21: 19 | H21: =IFERROR(Продажбиимаркетинг[[#This Row],[Текущ период]]/SUBTOTAL(109,Приходиотпродажби[Текущ период]),0) -> 42.2% | I21: =IFERROR(Продажбиимаркетинг[[#This Row],[Текущ период]]/Продажбиимаркетинг[[#This Row],[Предишен период]]-1,0) -> 0 | J21: =IFERROR(Продажбиимаркетинг[[#This Row],[Текущ период]]/Продажбиимаркетинг[[#This Row],[Бюджет]]-1,0) -> -13.6%
B22: Директен маркетинг | H22: =IFERROR(Продажбиимаркетинг[[#This Row],[Текущ период]]/SUBTOTAL(109,Приходиотпродажби[Текущ период]),0) -> 0 | I22: =IFERROR(Продажбиимаркетинг[[#This Row],[Текущ период]]/Продажбиимаркетинг[[#This Row],[Предишен период]]-1,0) -> 0 | J22: =IFERROR(Продажбиимаркетинг[[#This Row],[Текущ период]]/Продажбиимаркетинг[[#This Row],[Бюджет]]-1,0) -> 0
B23: Други разходи (определете) | H23: =IFERROR(Продажбиимаркетинг[[#This Row],[Текущ период]]/SUBTOTAL(109,Приходиотпродажби[Текущ период]),0) -> 0 | I23: =IFERROR(Продажбиимаркетинг[[#This Row],[Текущ период]]/Продажбиимаркетинг[[#This Row],[Предишен период]]-1,0) -> 0 | J23: =IFERROR(Продажбиимаркетинг[[#This Row],[Текущ период]]/Продажбиимаркетинг[[#This Row],[Бюджет]]-1,0) -> 0
B24: Общо | D24: =SUBTOTAL(109,Продажбиимаркетинг[Предишен период]) -> 0 | E24: =SUBTOTAL(109,Продажбиимаркетинг[Бюджет]) -> 22 | F24: =SUBTOTAL(109,Продажбиимаркетинг[Текущ период]) -> 19 | H24: =IFERROR(Продажбиимаркетинг[[#Totals],[Текущ период]]/SUBTOTAL(109,Приходиотпродажби[Текущ период]),0) -> 42.2% | I24: =IFERROR(Продажбиимаркетинг[[#Totals],[Текущ период]]/Продажбиимаркетинг[[#Totals],[Предишен период]]-1,0) -> 0 | J24: =IFERROR(Продажбиимаркетинг[[#Totals],[Текущ период]]/Продажбиимаркетинг[[#Totals],[Бюджет]]-1,0) -> -13.6%
B26: Текущ разход: Общи и административни
B27: Заплати | E27: 56 | F27: 51 | H27: =IFERROR(Общииадминистративни[[#This Row],[Текущ период]]/SUBTOTAL(109,Приходиотпродажби[Текущ период]),0) -> 113.3% | I27: =IFERROR(Общииадминистративни[[#This Row],[Текущ период]]/Общииадминистративни[[#This Row],[Предишен период]]-1,0) -> 0 | J27: =IFERROR(Общииадминистративни[[#This Row],[Текущ период]]/Общииадминистративни[[#This Row],[Бюджет]]-1,0) -> -8.9%
B28: Външни услуги | H28: =IFERROR(Общииадминистративни[[#This Row],[Текущ период]]/SUBTOTAL(109,Приходиотпродажби[Текущ период]),0) -> 0 | I28: =IFERROR(Общииадминистративни[[#This Row],[Текущ период]]/Общииадминистративни[[#This Row],[Предишен период]]-1,0) -> 0 | J28: =IFERROR(Общииадминистративни[[#This Row],[Текущ период]]/Общииадминистративни[[#This Row],[Бюджет]]-1,0) -> 0
B29: Консумативи | H29: =IFERROR(Общииадминистративни[[#This Row],[Текущ период]]/SUBTOTAL(109,Приходиотпродажби[Текущ период]),0) -> 0 | I29: =IFERROR(Общииадминистративни[[#This Row],[Текущ период]]/Общииадминистративни[[#This Row],[Предишен период]]-1,0) -> 0 | J29: =IFERROR(Общииадминистративни[[#This Row],[Текущ период]]/Общииадминистративни[[#This Row],[Бюджет]]-1,0) -> 0
B30: Храна и забавления | H30: =IFERROR(Общииадминистративни[[#This Row],[Текущ период]]/SUBTOTAL(109,Приходиотпродажби[Текущ период]),0) -> 0 | I30: =IFERROR(Общииадминистративни[[#This Row],[Текущ период]]/Общииадминистративни[[#This Row],[Предишен период]]-1,0) -> 0 | J30: =IFERROR(Общииадминистративни[[#This Row],[Текущ период]]/Общииадминистративни[[#This Row],[Бюджет]]-1,0) -> 0
B31: Наем | H31: =IFERROR(Общииадминистративни[[#This Row],[Текущ период]]/SUBTOTAL(109,Приходиотпродажби[Текущ период]),0) -> 0 | I31: =IFERROR(Общииадминистративни[[#This Row],[Текущ период]]/Общииадминистративни[[#This Row],[Предишен период]]-1,0) -> 0 | J31: =IFERROR(Общииадминистративни[[#This Row],[Текущ период]]/Общииадминистративни[[#This Row],[Бюджет]]-1,0) -> 0
B32: Телефон | H32: =IFERROR(Общииадминистративни[[#This Row],[Текущ период]]/SUBTOTAL(109,Приходиотпродажби[Текущ период]),0) -> 0 | I32: =IFERROR(Общииадминистративни[[#This Row],[Текущ период]]/Общииадминистративни[[#This Row],[Предишен период]]-1,0) -> 0 | J32: =IFERROR(Общииадминистративни[[#This Row],[Текущ период]]/Общииадминистративни[[#This Row],[Бюджет]]-1,0) -> 0
B33: Комунални услуги | H33: =IFERROR(Общииадминистративни[[#This Row],[Текущ период]]/SUBTOTAL(109,Приходиотпродажби[Текущ период]),0) -> 0 | I33: =IFERROR(Общииадминистративни[[#This Row],[Текущ период]]/Общииадминистративни[[#This Row],[Предишен период]]-1,0) -> 0 | J33: =IFERROR(Общииадминистративни[[#This Row],[Текущ период]]/Общииадминистративни[[#This Row],[Бюджет]]-1,0) -> 0
B34: Амортизация | H34: =IFERROR(Общииадминистративни[[#This Row],[Текущ период]]/SUBTOTAL(109,Приходиотпродажби[Текущ период]),0) -> 0 | I34: =IFERROR(Общииадминистративни[[#This Row],[Текущ период]]/Общииадминистративни[[#This Row],[Предишен период]]-1,0) -> 0 | J34: =IFERROR(Общииадминистративни[[#This Row],[Текущ период]]/Общииадминистративни[[#This Row],[Бюджет]]-1,0) -> 0
B35: Застраховка | H35: =IFERROR(Общииадминистративни[[#This Row],[Текущ период]]/SUBTOTAL(109,Приходиотпродажби[Текущ период]),0) -> 0 | I35: =IFERROR(Общииадминистративни[[#This Row],[Текущ период]]/Общииадминистративни[[#This Row],[Предишен период]]-1,0) -> 0 | J35: =IFERROR(Общииадминистративни[[#This Row],[Текущ период]]/Общииадминистративни[[#This Row],[Бюджет]]-1,0) -> 0
B36: Ремонт и поддръжка | H36: =IFERROR(Общииадминистративни[[#This Row],[Текущ период]]/SUBTOTAL(109,Приходиотпродажби[Текущ период]),0) -> 0 | I36: =IFERROR(Общииадминистративни[[#This Row],[Текущ период]]/Общииадминистративни[[#This Row],[Предишен период]]-1,0) -> 0 | J36: =IFERROR(Общииадминистративни[[#This Row],[Текущ период]]/Общииадминистративни[[#This Row],[Бюджет]]-1,0) -> 0
B37: Други разходи (определете) | H37: =IFERROR(Общииадминистративни[[#This Row],[Текущ период]]/SUBTOTAL(109,Приходиотпродажби[Текущ период]),0) -> 0 | I37: =IFERROR(Общииадминистративни[[#This Row],[Текущ период]]/Общииадминистративни[[#This Row],[Предишен период]]-1,0) -> 0 | J37: =IFERROR(Общииадминистративни[[#This Row],[Текущ период]]/Общииадминистративни[[#This Row],[Бюджет]]-1,0) -> 0
B38: Общо | D38: =SUBTOTAL(109,Общииадминистративни[Предишен период]) -> 0 | E38: =SUBTOTAL(109,Общииадминистративни[Бюджет]) -> 56 | F38: =SUBTOTAL(109,Общииадминистративни[Текущ период]) -> 51 | H38: =IFERROR(Общииадминистративни[[#Totals],[Текущ период]]/SUBTOTAL(109,Приходиотпродажби[Текущ период]),0) -> 113.3% | I38: =IFERROR(Общииадминистративни[[#Totals],[Текущ период]]/Общииадминистративни[[#Totals],[Предишен период]]-1,0) -> 0 | J38: =IFERROR(Общииадминистративни[[#Totals],[Текущ период]]/Общииадминистративни[[#Totals],[Бюджет]]-1,0) -> -8.9%
B40: Текущ разход: Други
B41: Друг текущ разход 1 | E41: 10 | H41: =IFERROR(Другикатегорииоперативниразходи[[#This Row],[Текущ период]]/SUBTOTAL(109,Приходиотпродажби[Текущ период]),0) -> 0 | I41: =IFERROR(Другикатегорииоперативниразходи[[#This Row],[Текущ период]]/Другикатегорииоперативниразходи[[#This Row],[Предишен период]]-1,0) -> 0 | J41: =IFERROR(Другикатегорииоперативниразходи[[#This Row],[Текущ период]]/Другикатегорииоперативниразходи[[#This Row],[Бюджет]]-1,0) -> -100.0%
B42: Друг текущ разход 2 | H42: =IFERROR(Другикатегорииоперативниразходи[[#This Row],[Текущ период]]/SUBTOTAL(109,Приходиотпродажби[Текущ период]),0) -> 0 | I42: =IFERROR(Другикатегорииоперативниразходи[[#This Row],[Текущ период]]/Другикатегорииоперативниразходи[[#This Row],[Предишен период]]-1,0) -> 0 | J42: =IFERROR(Другикатегорииоперативниразходи[[#This Row],[Текущ период]]/Другикатегорииоперативниразходи[[#This Row],[Бюджет]]-1,0) -> 0
B43: Общо | D43: =SUBTOTAL(109,Другикатегорииоперативниразходи[Предишен период]) -> 0 | E43: =SUBTOTAL(109,Другикатегорииоперативниразходи[Бюджет]) -> 10 | F43: =SUBTOTAL(109,Другикатегорииоперативниразходи[Текущ период]) -> 0 | H43: =IFERROR(Другикатегорииоперативниразходи[[#Totals],[Текущ период]]/SUBTOTAL(109,Приходиотпродажби[Текущ период]),0) -> 0 | I43: =IFERROR(Другикатегорииоперативниразходи[[#Totals],[Текущ период]]/Другикатегорииоперативниразходи[[#Totals],[Предишен период]]-1,0) -> 0 | J43: =IFERROR(Другикатегорииоперативниразходи[[#Totals],[Текущ период]]/Другикатегорииоперативниразходи[[#Totals],[Бюджет]]-1,0) -> -100.0%
B45: Общо текущи разходи | D45: =SUM(Продажбиимаркетинг[Предишен период],Общииадминистративни[Предишен период],Другикатегорииоперативниразходи[Предишен период]) -> 0 | E45: =SUM(Продажбиимаркетинг[Бюджет],Общииадминистративни[Бюджет],Другикатегорииоперативниразходи[Бюджет]) -> 88 | F45: =SUM(Продажбиимаркетинг[Текущ период],Общииадминистративни[Текущ период],Другикатегорииоперативниразходи[Текущ период]) -> 70 | H45: =IFERROR(F45/SUBTOTAL(109,Приходиотпродажби[Текущ период]),0) -> 155.6% | I45: =IFERROR(F45/D45-1,0) -> 0 | J45: =IFERROR(F45/E45-1,0) -> -20.5%
B47: Приход от операции | D47: =D18-D45 -> 40 | E47: =E18-E45 -> -45 | F47: =F18-F45 -> -32 | H47: =IFERROR(F47/SUBTOTAL(109,Приходиотпродажби[Текущ период]),0) -> -71.1% | I47: =IFERROR(IF(D47=F47,0,IF(F47>D47,ABS((F47/D47)-1),IF(AND(F47<D47,D47<0),-((F47/D47)-1),(F47/D47)-1))),0) -> -180.0% | J47: =IFERROR(IF(E47=F47,0,IF(F47>E47,ABS((F47/E47)-1),IF(AND(F47<E47,E47<0),-((F47/E47)-1),(F47/E47)-1))),0) -> 28.9%
B49: Други приходи | H49: =IFERROR(F49/SUBTOTAL(109,Приходиотпродажби[Текущ период]),0) -> 0 | I49: =IFERROR(F49/D49-1,0) -> 0 | J49: =IFERROR(F49/E49-1,0) -> 0
B51: Данъци
B52: Данъци върху приходите | E52: 32 | F52: 30 | H52: =IFERROR(Данъци[[#This Row],[Текущ период]]/SUBTOTAL(109,Приходиотпродажби[Текущ период]),0) -> 66.7% | I52: =IFERROR(Данъци[[#This Row],[Текущ период]]/Данъци[[#This Row],[Предишен период]]-1,0) -> 0 | J52: =IFERROR(Данъци[[#This Row],[Текущ период]]/Данъци[[#This Row],[Бюджет]]-1,0) -> -6.3%
B53: ТРЗ разходи | H53: =IFERROR(Данъци[[#This Row],[Текущ период]]/SUBTOTAL(109,Приходиотпродажби[Текущ период]),0) -> 0 | I53: =IFERROR(Данъци[[#This Row],[Текущ период]]/Данъци[[#This Row],[Предишен период]]-1,0) -> 0 | J53: =IFERROR(Данъци[[#This Row],[Текущ период]]/Данъци[[#This Row],[Бюджет]]-1,0) -> 0
B54: Данъци върху недвижими имоти | H54: =IFERROR(Данъци[[#This Row],[Текущ период]]/SUBTOTAL(109,Приходиотпродажби[Текущ период]),0) -> 0 | I54: =IFERROR(Данъци[[#This Row],[Текущ период]]/Данъци[[#This Row],[Предишен период]]-1,0) -> 0 | J54: =IFERROR(Данъци[[#This Row],[Текущ период]]/Данъци[[#This Row],[Бюджет]]-1,0) -> 0
B55: Други данъци (определете) | H55: =IFERROR(Данъци[[#This Row],[Текущ период]]/SUBTOTAL(109,Приходиотпродажби[Текущ период]),0) -> 0 | I55: =IFERROR(Данъци[[#This Row],[Текущ период]]/Данъци[[#This Row],[Предишен период]]-1,0) -> 0 | J55: =IFERROR(Данъци[[#This Row],[Текущ период]]/Данъци[[#This Row],[Бюджет]]-1,0) -> 0
B56: Общо | D56: =SUBTOTAL(109,Данъци[Предишен период]) -> 0 | E56: =SUBTOTAL(109,Данъци[Бюджет]) -> 32 | F56: =SUBTOTAL(109,Данъци[Текущ период]) -> 30 | H56: =IFERROR(Данъци[[#Totals],[Текущ период]]/SUBTOTAL(109,Приходиотпродажби[Текущ период]),0) -> 66.7% | I56: =IFERROR(Данъци[[#Totals],[Текущ период]]/Данъци[[#Totals],[Предишен период]]-1,0) -> 0 | J56: =IFERROR(Данъци[[#Totals],[Текущ период]]/Данъци[[#Totals],[Бюджет]]-1,0) -> -6.3%
B58: Нетна печалба | D58: =D47+D49-Данъци[[#Totals],[Предишен период]] -> 40 | E58: =E47+E49-Данъци[[#Totals],[Предишен период]] -> -45 | F58: =F47+F49-Данъци[[#Totals],[Предишен период]] -> -32 | H58: =IFERROR(F58/SUBTOTAL(109,Приходиотпродажби[Текущ период]),0) -> -71.1% | I58: =IFERROR(IF(D58=F58,0,IF(F58>D58,ABS((F58/D58)-1),IF(AND(F58<D58,D58<0),-((F58/D58)-1),(F58/D58)-1))),0) -> -180.0% | J58: =IFERROR(IF(E58=F58,0,IF(F58>E58,ABS((F58/E58)-1),IF(AND(F58<E58,E58<0),-((F58/E58)-1),(F58/E58)-1))),0) -> 28.9%
B59: Брутен марж | D59: =D18/SUM(Приходиотпродажби[Предишен период]) -> 100.0% | E59: =E18/SUM(Приходиотпродажби[Бюджет]) -> 86.0% | F59: =F18/SUM(Приходиотпродажби[Текущ период]) -> 84.4%
B60: Възвръщаемост от продажби | D60: =D58/SUM(Приходиотпродажби[Предишен период]) -> 100.0% | E60: =E58/SUM(Приходиотпродажби[Бюджет]) -> -90.0% | F60: =F58/SUM(Приходиотпродажби[Текущ период]) -> -71.1%
